bitfinex-derivatives/quotes_SOLF0:USTF0_20250311
["timestamp","ask_amount","ask_price","bid_price","bid_amount"]
[1741727150495,7.8765,127.0,126.95,32.1804]
[1741727150496,63.09550529,127.03,126.98,11.58844064]
[1741727150795,43.63226465,127.03,127.0,19.46424064]
[1741727150983,0.05168878,127.02,127.0,49.58424064]
[1741727151387,0.05168878,127.02,127.0,49.63853701]
[1741727152891,0.05168878,127.02,127.0,41.76273701]
[1741727153596,0.05168878,127.02,127.0,49.63893701]
[1741727154590,0.05168878,127.02,127.01,7.8756]
[1741727155004,0.05168878,127.02,127.0,41.76273701]
[1741727156199,0.05168878,127.02,127.0,49.63883701]
[1741727156800,0.05168878,127.02,127.0,41.76273701]
[1741727157003,0.05168878,127.02,127.01,7.8756]
[1741727157196,11.58844064,127.07,127.0,43.88363701]
[1741727157392,11.58844064,127.07,127.02,11.58844064]
[1741727157594,7.8729,127.06,127.03,30.12]
[1741727158501,0.05650179,127.06,127.03,30.17728849]
[1741727158697,0.05650179,127.06,127.03,38.05158849]
[1741727158996,7.8734,127.05,127.03,30.17728849]
[1741727159494,0.05650179,127.06,127.03,30.17728849]
[1741727159901,11.58844064,127.05,127.03,30.17728849]
[1741727160102,7.8734,127.05,127.03,30.17728849]
[1741727161599,19.51764243,127.06,127.03,30.17728849]
[1741727161897,7.92920179,127.06,127.03,30.17728849]
[1741727162103,0.05650179,127.06,127.03,30.17728849]
[1741727163195,0.05650179,127.06,127.04,11.58844064]
[1741727163801,0.05650179,127.06,127.04,19.46184064]
[1741727164204,11.58844064,127.1,127.04,11.58844064]
[1741727164397,7.8715,127.08,127.04,11.58844064]
[1741727164707,11.58844064,127.08,127.04,11.58844064]
[1741727164905,7.8727,127.06,127.03,30.12]
[1741727165206,11.58844064,127.06,127.03,30.12]
[1741727165396,19.51895528,127.06,127.03,30.17632123]
[1741727165602,11.64615528,127.06,127.03,30.17632123]
[1741727165800,0.05771464,127.06,127.03,30.17632123]
[1741727166906,0.05771464,127.06,127.04,11.58844064]
[1741727167099,11.58844064,127.11,127.04,11.58844064]
[1741727167408,11.58844064,127.11,127.06,11.58844064]
[1741727167609,11.58844064,127.11,127.07,30.1]
[1741727167996,7.871,127.09,127.07,30.1]
[1741727168202,11.58844064,127.11,127.07,30.1]
[1741727168501,192.0,127.19,127.08,11.58844064]
[1741727168706,11.58844064,127.15,127.08,11.58844064]
[1741727169007,19.45564064,127.15,127.1,7.8697]
[1741727169204,194.1244,127.19,127.12,11.58844064]
[1741727169404,329.55948994,127.25,127.13,30.1]
[1741727169607,1318.23795976,127.34,127.24,11.58844064]
[1741727169905,526.98771186,127.32,127.31,11.58844064]
[1741727170107,526.98771186,127.32,127.31,41.66844064]
[1741727170310,526.98771186,127.32,127.31,30.08]
[1741727172304,526.98771186,127.32,127.31,58.86010818]
[1741727172701,0.05284771,127.33,127.31,155.75699759]
[1741727174208,0.05284771,127.33,127.32,125.67699759]
[1741727174709,0.05284771,127.33,127.32,119.15399759]
[1741727174911,0.05284771,127.33,127.32,115.89279759]
[1741727176414,36.10333342,127.36,127.32,176.45923987]
[1741727176805,36.10333342,127.36,127.32,267.47838138]
[1741727177010,28.78010818,127.34,127.32,257.69598138]
[1741727177212,28.78010818,127.34,127.32,244.65078138]
[1741727177413,28.78010818,127.34,127.32,0.05038908]
[1741727177717,28.78010818,127.34,127.33,15.90497044]
[1741727177915,31.14010818,127.34,127.32,0.05038908]
[1741727178216,28.78010818,127.34,127.32,0.05038908]
[1741727178415,36.63570818,127.34,127.32,0.05038908]
[1741727179015,28.78010818,127.34,127.32,0.05038908]
[1741727179214,30.06,127.35,127.32,0.05038908]
[1741727179515,7.8557,127.34,127.32,0.05038908]
[1741727179814,58.84010818,127.35,127.32,0.05038908]
[1741727180015,7.8558,127.33,127.32,0.05038908]
[1741727180217,480.22010818,127.42,127.32,0.05038908]
[1741727180412,510.26010818,127.42,127.31,585.97581656]
[1741727180608,7.8521,127.39,127.36,0.05336471]
[1741727180812,510.26010818,127.42,127.36,0.05336471]
[1741727181015,7.8516,127.4,127.36,0.05336471]
[1741727181215,510.26010818,127.42,127.36,0.05336471]
[1741727181918,7.8517,127.4,127.36,0.05336471]
[1741727182417,510.26010818,127.42,127.36,0.05336471]
[1741727182619,511.56150818,127.42,127.4,1047.73675297]
[1741727182920,7.8525,127.39,127.37,10.80221909]
[1741727183118,30.04,127.38,127.37,10.80221909]
[1741727183424,30.04,127.38,127.37,0.0605149]
[1741727183719,40.2527,127.38,127.31,1025.38846981]
[1741727183920,37.8927,127.38,127.31,1025.38846981]
[1741727184516,30.04,127.37,127.31,1025.38846981]
[1741727185017,0.05196735,127.35,127.33,0.04975925]
[1741727186024,423.42742049,127.35,127.33,0.04975925]
[1741727186721,30.04,127.34,127.31,995.34846981]
[1741727186920,259.34,127.34,127.31,995.34846981]
[1741727187823,395.36314506,127.34,127.31,6.72526276]
[1741727189426,136.02314506,127.33,127.31,6.72526276]
[1741727191123,136.02314506,127.32,127.31,6.72526276]
[1741727191322,136.02314506,127.32,127.26,18.31291844]
[1741727191627,136.02314506,127.32,127.27,2.1236]
[1741727192124,136.02314506,127.32,127.28,2.1366]
[1741727192325,424.21807376,127.33,127.29,17.98813342]
[1741727192620,424.21807376,127.33,127.3,30.02]
[1741727192621,0.05773452,127.31,127.3,30.02]
[1741727192827,424.21807376,127.33,127.3,32.175]
[1741727193218,424.21807376,127.33,127.3,22.79476527]
[1741727193426,417.68987376,127.33,127.3,22.79476527]
[1741727194025,417.74125249,127.33,127.3,22.79476527]
[1741727194226,417.74125249,127.33,127.3,51.56929335]
[1741727194428,0.05137873,127.33,127.3,51.56929335]
[1741727194626,423.37545314,127.35,127.3,51.56929335]
[1741727195229,423.37545314,127.35,127.3,22.79476527]
[1741727195824,0.05861453,127.34,127.3,22.79476527]
[1741727196028,0.05861453,127.34,127.29,0.05191508]
[1741727196629,30.08,127.33,127.29,0.05191508]
[1741727196823,7.8574,127.31,127.24,30.08]
[1741727197229,30.08,127.33,127.24,30.08]
[1741727197424,7.8567,127.32,127.24,58.85452808]
[1741727198127,0.05630602,127.29,127.27,0.05222807]
[1741727207244,7.91460602,127.29,127.27,0.05222807]
[1741727207654,37.95460602,127.29,127.27,0.05222807]
[1741727208252,30.09630602,127.29,127.27,0.05222807]
[1741727209959,37.95460602,127.29,127.27,0.05222807]
[1741727210757,7.91460602,127.29,127.27,0.05222807]
[1741727210957,7.8588,127.28,127.27,0.05222807]
[1741727211356,0.05630602,127.29,127.26,7.47]
[1741727211554,28.8308341,127.29,127.26,7.47]
[1741727211755,30.9091341,127.29,127.26,7.47]
[1741727212553,30.9091341,127.29,127.26,7.52506118]
[1741727213362,7.8595,127.27,127.26,7.52506118]
[1741727214357,7.8595,127.27,127.26,4.26156118]
[1741727214563,7.8617,127.24,127.2,34.25176]
[1741727214763,30.04,127.25,127.2,34.25176]
[1741727215665,7.91892653,127.24,127.21,0.0530265]
[1741727216758,7.862,127.23,127.21,0.0530265]
[1741727217361,7.91892653,127.24,127.21,0.0530265]
[1741727218961,0.05732653,127.24,127.21,0.0530265]
[1741727219167,0.05732653,127.24,127.21,18.07672828]
[1741727220466,0.05732653,127.24,127.22,7.8622]
[1741727221169,0.05732653,127.24,127.21,0.0530265]
[1741727221869,7.91912653,127.24,127.21,0.0530265]
[1741727222371,0.05732653,127.24,127.21,7.9161265]
[1741727222571,0.05732653,127.24,127.21,0.0530265]
[1741727223270,0.05732653,127.24,127.21,7.9159265]
[1741727223473,0.05732653,127.24,127.21,0.0530265]
[1741727223672,0.05732653,127.24,127.21,7.9158265]
[1741727224076,0.05732653,127.24,127.21,0.0530265]
[1741727224372,0.05732653,127.24,127.21,7.9158265]
[1741727224567,0.05732653,127.24,127.21,0.0530265]
[1741727224770,18.08102831,127.24,127.21,0.0530265]
[1741727224970,0.05732653,127.24,127.21,0.0530265]
[1741727225871,7.8624,127.23,127.21,0.0530265]
[1741727226074,0.05732653,127.24,127.21,0.0530265]
[1741727227273,7.8622,127.23,127.21,0.0530265]
[1741727228264,7.91892653,127.24,127.21,0.0530265]
[1741727229072,7.8623,127.23,127.21,0.0530265]
[1741727229277,0.05732653,127.24,127.21,0.0530265]
[1741727230074,7.8626,127.22,127.21,0.0530265]
[1741727232776,7.8626,127.22,127.2,32.26546]
[1741727232777,7.8632,127.21,127.2,32.26546]
[1741727233771,25.88690178,127.21,127.2,32.26546]
[1741727233972,18.02370178,127.21,127.19,0.05236199]
[1741727234274,18.02370178,127.21,127.15,2.009]
[1741727234777,7.8656,127.17,127.14,4.24]
[1741727234972,18.02370178,127.19,127.14,4.24]
[1741727235172,0.05889212,127.17,127.14,4.29320173]
[1741727235571,0.05889212,127.17,127.15,7.8668]
[1741727236478,0.05889212,127.17,127.14,0.05320173]
[1741727236680,0.05889212,127.17,127.16,7.8663]
[1741727236881,7.8639,127.2,127.16,7.8663]
[1741727237780,30.04,127.22,127.16,30.04]
[1741727237978,0.05130495,127.19,127.17,0.05160104]
[1741727238178,30.04,127.24,127.16,48.06370178]
[1741727238880,7.8635,127.21,127.17,7.8651]
[1741727239075,30.04,127.24,127.16,48.06370178]
[1741727239269,0.05598446,127.2,127.18,0.05380217]
[1741727240381,0.05598446,127.2,127.18,7.91850217]
[1741727240780,7.8622,127.23,127.18,7.91850217]
[1741727240781,7.8622,127.23,127.18,0.05380217]
[1741727240981,7.8622,127.23,127.19,7.8644]
[1741727241982,0.05242762,127.22,127.18,0.05380217]
[1741727242373,0.05242762,127.22,127.19,7.864]
[1741727242576,0.05242762,127.22,127.18,0.05380217]
[1741727242777,0.05242762,127.22,127.18,18.07750395]
[1741727242983,0.05242762,127.22,127.21,7.8632]
[1741727244483,0.05242762,127.22,127.2,7.8635]
[1741727244885,0.05242762,127.22,127.19,2.0867]
[1741727245081,0.05242762,127.22,127.19,9.9507]
[1741727245684,0.05242762,127.22,127.19,2.0867]
[1741727245885,0.05242762,127.22,127.2,7.8637]
[1741727246082,0.05242762,127.22,127.19,4.0492]
[1741727247680,0.05242762,127.22,127.2,7.8638]
[1741727248875,7.91542762,127.22,127.19,4.0492]
[1741727249278,0.05242762,127.22,127.19,4.0492]
[1741727249479,0.05242762,127.22,127.19,11.9132]
[1741727250479,7.91512762,127.22,127.19,11.9132]
[1741727250984,7.91512762,127.22,127.19,2.0867]
[1741727251184,0.05242762,127.22,127.19,2.0867]
[1741727251385,0.05242762,127.22,127.19,9.9508]
[1741727252484,0.05242762,127.22,127.21,7.8632]
[1741727254388,0.05242762,127.22,127.2,7.8635]
[1741727254983,0.05242762,127.22,127.21,7.8632]
[1741727255194,37.9004,127.26,127.2,18.02370178]
[1741727255386,277.50370178,127.27,127.2,18.02370178]
[1741727255584,7.8612,127.25,127.21,7.8628]
[1741727256090,7.8612,127.25,127.19,32.1267]
[1741727256285,7.8612,127.25,127.2,7.8637]
[1741727256492,0.05664712,127.23,127.21,0.05415576]
[1741727256692,0.05664712,127.23,127.21,7.91725576]
[1741727256989,0.05664712,127.23,127.21,0.05415576]
[1741727258693,7.91864712,127.23,127.21,0.05415576]
[1741727259794,0.05664712,127.23,127.21,0.05415576]
[1741727260495,7.91884712,127.23,127.21,0.05415576]
[1741727261896,0.05664712,127.23,127.21,0.05415576]
[1741727262799,7.91884712,127.23,127.21,0.05415576]
[1741727263099,7.91884712,127.23,127.21,7.91735576]
[1741727263300,0.05664712,127.23,127.21,0.05415576]
[1741727263799,0.05664712,127.23,127.21,7.91715576]
[1741727263998,0.05664712,127.23,127.21,0.05415576]
[1741727264797,7.91854712,127.23,127.21,0.05415576]
[1741727265398,0.05664712,127.23,127.21,7.91735576]
[1741727268102,0.05664712,127.23,127.21,7.91725576]
[1741727268803,7.91854712,127.23,127.21,0.05415576]
[1741727270499,0.05664712,127.23,127.21,0.05415576]
[1741727272213,0.05664712,127.23,127.21,7.91715576]
[1741727273008,0.05664712,127.23,127.21,0.05415576]
[1741727273606,7.91864712,127.23,127.21,0.05415576]
[1741727274409,0.05664712,127.23,127.21,7.91725576]
[1741727275006,0.05664712,127.23,127.22,7.8626]
[1741727276110,0.05664712,127.23,127.21,7.91695576]
[1741727277403,0.05664712,127.23,127.21,0.05415576]
[1741727278108,7.91884712,127.23,127.21,0.05415576]
[1741727278307,11.53309426,127.22,127.21,0.05415576]
[1741727279006,7.8649,127.19,127.16,2.1467]
[1741727279209,11.53309426,127.19,127.16,2.1467]
[1741727279808,11.53309426,127.2,127.16,2.1467]
[1741727280309,0.05951656,127.19,127.17,0.05792833]
[1741727281310,0.05951656,127.19,127.18,7.865]
[1741727282012,0.05951656,127.19,127.17,0.05792833]
[1741727282213,0.05951656,127.19,127.17,7.92342833]
[1741727284111,7.92421656,127.19,127.17,0.05792833]
[1741727284423,0.05951656,127.19,127.17,0.05792833]
[1741727285011,7.865,127.18,127.17,0.05792833]
[1741727285817,7.92421656,127.19,127.17,0.05792833]
[1741727287318,7.92421656,127.19,127.17,7.92352833]
[1741727287521,7.92421656,127.19,127.17,0.05792833]
[1741727287720,7.865,127.18,127.17,0.05792833]
[1741727289122,0.05951656,127.19,127.17,0.05792833]
[1741727289421,7.92421656,127.19,127.17,0.05792833]
[1741727289820,0.05951656,127.19,127.17,7.92302833]
[1741727290318,0.05951656,127.19,127.18,7.865]
[1741727290718,0.05951656,127.19,127.17,0.05792833]
[1741727290919,0.05951656,127.19,127.17,7.92322833]
[1741727291717,7.92421656,127.19,127.17,0.05792833]
[1741727292122,0.05951656,127.19,127.17,0.05792833]
[1741727292318,11.53309426,127.18,127.17,0.05792833]
[1741727292518,19.39809426,127.18,127.17,0.05792833]
[1741727293025,11.53309426,127.14,127.1,2.0679]
[1741727293222,11.53309426,127.13,127.09,30.04]
[1741727293924,11.53309426,127.13,127.1,7.8699]
[1741727294119,0.04964476,127.12,127.1,0.0532799]
[1741727295417,0.04964476,127.12,127.1,7.9228799]
[1741727295619,0.04964476,127.12,127.1,0.0532799]
[1741727296227,0.04964476,127.12,127.1,7.9228799]
[1741727296823,0.04964476,127.12,127.1,0.0532799]
[1741727297028,0.04964476,127.12,127.11,7.8694]
[1741727297822,0.04964476,127.12,127.1,0.0532799]
[1741727298027,0.04964476,127.12,127.1,7.9228799]
[1741727298921,11.53309426,127.18,127.11,41.57309426]
[1741727299228,11.53309426,127.16,127.11,41.57309426]
[1741727299428,11.53309426,127.16,127.13,7.8678]
[1741727299626,19.39919426,127.17,127.12,11.53309426]
[1741727299829,11.53309426,127.17,127.12,11.53309426]
[1741727300330,0.0538446,127.16,127.13,0.05935323]
[1741727301029,0.0538446,127.16,127.14,7.867]
[1741727301225,0.0538446,127.16,127.13,0.05935323]
[1741727301829,7.8672,127.15,127.13,0.05935323]
[1741727302123,11.58693886,127.16,127.13,0.05935323]
[1741727302329,11.58693886,127.16,127.13,7.92745323]
[1741727302829,19.45343886,127.16,127.13,0.05935323]
[1741727303029,11.58693886,127.16,127.13,0.05935323]
[1741727303330,19.45363886,127.16,127.13,0.05935323]
[1741727303525,0.0538446,127.16,127.13,0.05935323]
[1741727303724,0.0538446,127.16,127.13,11.59244749]
[1741727304524,0.0538446,127.16,127.15,7.8669]
[1741727305129,0.0538446,127.16,127.15,19.39999426]
[1741727306119,0.0538446,127.16,127.14,41.57309426]
[1741727306324,0.0538446,127.16,127.14,37.9072]
[1741727306519,7.9201446,127.16,127.14,30.04]
[1741727307217,0.0538446,127.16,127.14,30.04]
[1741727307425,0.0538446,127.16,127.15,7.8669]
[1741727307619,0.0538446,127.16,127.14,30.04]
[1741727308019,0.0538446,127.16,127.14,37.9072]
[1741727310340,0.0538446,127.16,127.14,30.04]
[1741727310530,0.0538446,127.16,127.15,7.8669]
[1741727312136,0.0538446,127.16,127.14,37.9072]
[1741727313035,0.0538446,127.16,127.15,7.8669]
[1741727314132,0.0538446,127.16,127.14,37.9072]
[1741727314734,0.0538446,127.16,127.14,30.04]
[1741727315038,0.0538446,127.16,127.13,0.05935323]
[1741727315233,11.58693886,127.16,127.13,0.05935323]
[1741727315537,7.8675,127.14,127.13,0.05935323]
[1741727316136,19.40059426,127.14,127.13,0.05935323]
[1741727316333,11.53309426,127.14,127.08,36.3636]
[1741727316528,11.53309426,127.12,127.08,36.3636]
[1741727316733,11.53309426,127.12,127.08,44.2345]
[1741727317244,30.04,127.15,127.09,11.53309426]
[1741727317432,0.06017442,127.11,127.09,11.58565301]
[1741727317833,0.06017442,127.11,127.1,7.87]
[1741727321838,0.06017442,127.11,127.09,19.45595301]
[1741727322140,0.06017442,127.11,127.09,7.92285875]
[1741727322740,0.06017442,127.11,127.1,7.87]
[1741727330446,11.59326868,127.11,127.09,0.05255875]
[1741727331043,19.46286868,127.11,127.09,0.05255875]
[1741727331243,11.59326868,127.11,127.09,0.05255875]
[1741727331748,11.59326868,127.11,127.09,7.92265875]
[1741727331956,11.59326868,127.11,127.09,0.05255875]
[1741727332249,11.59326868,127.11,127.09,7.92285875]
[1741727334647,11.59326868,127.11,127.09,0.05255875]
[1741727334855,11.59326868,127.11,127.09,7.92305875]
[1741727335854,0.06017442,127.11,127.1,7.87]
[1741727341554,0.06017442,127.11,127.09,0.05255875]
[1741727341752,0.06017442,127.11,127.09,7.92275875]
[1741727341958,7.92987442,127.11,127.09,0.05255875]
[1741727343061,19.46296868,127.11,127.09,0.05255875]
[1741727344362,11.53309426,127.1,127.08,4.28]
[1741727344564,11.53309426,127.1,127.02,12.254]
[1741727344763,11.53309426,127.06,127.02,42.294]
[1741727345365,11.53309426,127.06,127.02,50.1686]
[1741727345564,0.05823323,127.05,127.03,0.05400493]
[1741727346159,7.93143323,127.05,127.03,0.05400493]
[1741727347263,0.05823323,127.05,127.03,0.05400493]
[1741727348867,7.8737,127.04,127.03,0.05400493]
[1741727349072,19.40679426,127.04,127.03,0.05400493]
[1741727350765,11.53309426,127.04,126.98,7.8771]
[1741727351063,30.04,127.06,126.98,7.8771]
[1741727351064,11.53309426,127.02,126.98,7.8771]
[1741727351371,19.40859426,127.02,126.98,7.8771]
[1741727351573,11.53309426,127.02,126.98,7.8771]
[1741727351970,0.05672323,127.01,126.99,0.05230196]
[1741727352170,0.05672323,127.01,126.99,7.92900196]
[1741727352668,0.05672323,127.01,127.0,7.8762]
[1741727353467,7.8728,127.06,127.03,7.874]
[1741727353668,38.1218,127.1,127.01,11.53309426]
[1741727353870,11.53309426,127.07,127.01,19.87909426]
[1741727354073,19.40519426,127.07,127.04,7.8734]
[1741727354273,11.53309426,127.07,127.03,30.04]
[1741727354666,7.92426442,127.06,127.04,0.05575616]
[1741727355376,0.05136442,127.06,127.04,7.92945616]
[1741727360476,0.05136442,127.06,127.05,7.8731]
[1741727360779,0.05136442,127.06,127.04,0.05575616]
[1741727360979,0.05136442,127.06,127.04,7.92905616]
[1741727362783,0.05136442,127.06,127.04,0.05575616]
[1741727364285,0.05136442,127.06,127.04,7.92925616]
[1741727364986,7.92386442,127.06,127.04,0.05575616]
[1741727365377,0.05136442,127.06,127.04,0.05575616]
[1741727366886,7.92406442,127.06,127.04,0.05575616]
[1741727367782,0.05136442,127.06,127.04,0.05575616]
[1741727368481,7.8731,127.05,127.04,0.05575616]
[1741727368682,0.05136442,127.06,127.04,0.05575616]
[1741727369287,0.05136442,127.06,127.04,7.92905616]
[1741727369989,0.05136442,127.06,127.05,7.8731]
[1741727371287,259.66,127.11,127.04,30.09575616]
[1741727371491,267.5297,127.11,127.08,7.8709]
[1741727372089,267.5297,127.11,127.07,30.04]
[1741727372392,92.20802949,127.14,127.07,30.04]
[1741727372690,0.0594849,127.1,127.08,0.05722313]
[1741727372890,7.8706,127.09,127.08,0.05722313]
[1741727375791,18.13038851,127.1,127.03,42.2674]
[1741727376097,18.07090361,127.07,127.02,30.04]
[1741727376296,11.56852644,127.04,127.02,37.9146]
[1741727376495,30.04,127.09,126.99,4.0178]
[1741727376496,11.56852644,127.03,126.99,4.0178]
[1741727376696,11.56852644,127.01,126.99,34.0578]
[1741727376890,11.56852644,127.01,126.99,41.9344]
[1741727377087,11.6199819,127.01,126.99,0.05859724]
[1741727378001,11.56852644,127.0,126.99,0.05859724]
[1741727378200,18.09444931,127.0,126.99,0.05859724]
[1741727378697,25.97064931,127.0,126.99,0.05859724]
[1741727378999,18.09444931,127.0,126.99,0.05859724]
[1741727380304,25.97064931,127.0,126.99,0.05859724]
[1741727382399,18.09444931,127.0,126.99,0.05859724]
[1741727383502,0.05145546,127.01,126.99,7.93539724]
[1741727383795,0.05145546,127.01,126.99,0.05859724]
[1741727384001,0.05145546,127.01,127.0,7.8762]
[1741727384397,18.09444931,127.06,126.99,0.05859724]
[1741727384596,25.96724931,127.06,127.02,7.8746]
[1741727385598,7.92718429,127.05,127.03,0.05504663]
[1741727387408,18.09444931,127.04,127.03,0.05504663]
[1741727387604,25.96814931,127.04,127.03,0.05504663]
[1741727388607,18.09444931,127.04,127.03,0.05504663]
[1741727390602,0.05398429,127.05,127.03,0.05504663]
[1741727391503,7.8737,127.04,127.03,0.05504663]
[1741727392309,7.92738429,127.05,127.03,0.05504663]
[1741727393008,7.8737,127.04,127.03,0.05504663]
[1741727393309,25.96814931,127.04,127.03,0.05504663]
[1741727396418,18.09444931,127.04,127.03,0.05504663]
[1741727397115,25.96814931,127.04,127.03,0.05504663]
[1741727402427,18.09444931,127.04,127.03,0.05504663]
[1741727403026,25.96814931,127.04,127.03,0.05504663]
[1741727404024,0.05398429,127.05,127.04,7.8737]
[1741727404223,0.05398429,127.05,127.03,0.05504663]
[1741727404629,7.8737,127.04,127.03,0.05504663]
[1741727405829,7.92738429,127.05,127.03,0.05504663]
[1741727406731,7.8737,127.04,127.03,0.05504663]
[1741727408131,0.05398429,127.05,127.03,0.05504663]
[1741727411636,0.05398429,127.05,127.03,7.92904663]
[1741727411839,0.05398429,127.05,127.03,0.05504663]
[1741727412334,7.92738429,127.05,127.03,0.05504663]
[1741727414333,11.57011914,127.04,127.03,0.05504663]
[1741727414637,19.44381914,127.04,127.03,0.05504663]
[1741727415337,11.57011914,127.04,127.03,0.05504663]
[1741727416341,19.44381914,127.04,127.03,0.05504663]
[1741727417540,7.27540015,127.14,127.03,220.07504663]
[1741727417737,127.34673121,127.18,127.11,11.57011914]
[1741727417936,96.46793994,127.17,127.09,11.57011914]
[1741727418141,11.57011914,127.11,127.07,30.02]
[1741727418735,0.05480834,127.1,127.09,11.57011914]
[1741727418941,32.18554221,127.16,127.09,11.57011914]
[1741727419141,32.18554221,127.16,127.11,7.8693]
[1741727419345,32.18554221,127.16,127.1,30.02]
[1741727419641,32.18554221,127.16,127.11,11.57011914]
[1741727419843,32.18554221,127.16,127.12,7.8686]
[1741727420031,0.05600263,127.14,127.12,0.0569633]
[1741727420540,0.05600263,127.14,127.12,7.9252633]
[1741727420740,0.05600263,127.14,127.12,0.0569633]
[1741727421640,0.05600263,127.14,127.13,7.8681]
[1741727427844,264.0108,127.19,127.16,7.8658]
[1741727428445,264.0108,127.19,127.14,7.8672]
[1741727428848,264.0108,127.19,127.13,30.0]
[1741727429043,0.05573129,127.18,127.15,7.92395324]
[1741727429448,0.05573129,127.18,127.15,0.05735324]
[1741727430653,7.866,127.17,127.15,0.05735324]
[1741727431451,18.09994157,127.18,127.15,0.05735324]
[1741727432256,7.866,127.17,127.15,0.05735324]
[1741727433657,18.09994157,127.18,127.15,0.05735324]
[1741727434357,7.8654,127.17,127.15,0.05735324]
[1741727434556,18.09994157,127.18,127.15,0.05735324]
[1741727435057,7.8655,127.16,127.15,0.05735324]
[1741727435552,18.09994157,127.18,127.15,0.05735324]
[1741727435751,7.8653,127.17,127.15,0.05735324]
[1741727436150,0.05573129,127.18,127.15,0.05735324]
[1741727436759,7.92023129,127.18,127.15,0.05735324]
[1741727437560,0.05573129,127.18,127.15,0.05735324]
[1741727437761,7.865,127.17,127.15,0.05735324]
[1741727438561,7.8655,127.16,127.15,0.05735324]
[1741727443162,0.05573129,127.18,127.15,0.05735324]
[1741727443466,7.8653,127.17,127.15,0.05735324]
[1741727443966,7.8655,127.16,127.15,0.05735324]
[1741727451476,19.41112685,127.16,127.15,0.05735324]
[1741727457890,11.54562685,127.16,127.12,30.0]
[1741727458090,11.54562685,127.14,127.1,29.98]
[1741727458395,11.54562685,127.14,127.11,7.8682]
[1741727458992,11.60321538,127.14,127.11,7.92416544]
[1741727459182,0.05758853,127.14,127.13,7.8673]
[1741727459387,0.05758853,127.14,127.12,11.54562685]
[1741727459786,0.05758853,127.14,127.11,0.05596544]
[1741727459989,11.54562685,127.12,127.11,0.05596544]
[1741727460196,11.60321538,127.14,127.11,0.05596544]
[1741727461191,0.05758853,127.14,127.11,0.05596544]
[1741727461585,7.8678,127.13,127.11,0.05596544]
[1741727462189,0.05758853,127.14,127.11,0.05596544]
[1741727462393,7.8679,127.12,127.11,0.05596544]
[1741727463195,19.41322685,127.13,127.11,0.05596544]
[1741727463494,11.54562685,127.13,127.11,0.05596544]
[1741727465295,7.8679,127.12,127.11,0.05596544]
[1741727468104,41.52562685,127.13,127.03,15.84902685]
[1741727468297,11.54562685,127.08,127.04,29.98]
[1741727468494,11.54562685,127.08,127.03,15.84902685]
[1741727468798,11.54562685,127.08,127.03,34.2834]
[1741727468997,11.54562685,127.09,127.05,7.8721]
[1741727469198,0.05759208,127.07,127.05,7.8721]
[1741727470493,0.05759208,127.07,127.04,0.05979685]
[1741727472497,0.05759208,127.07,127.05,7.8719]
[1741727473499,0.05759208,127.07,127.04,0.05979685]
[1741727473702,0.05759208,127.07,127.05,11.54562685]
[1741727473902,0.05759208,127.07,127.06,29.98]
[1741727474097,0.05759208,127.07,127.06,37.8517]
[1741727478107,11.54562685,127.11,127.1,7.8692]
[1741727479208,0.05545085,127.12,127.1,7.8692]
[1741727483003,11.54562685,127.11,127.09,0.05637207]
[1741727483406,11.54562685,127.11,127.03,4.3034]
[1741727483606,11.54562685,127.05,126.98,11.54562685]
[1741727483802,11.54562685,127.03,126.97,138.80623393]
[1741727483998,11.54562685,127.01,126.98,29.98]
[1741727484198,25.95966933,127.03,126.99,7.876]
[1741727484706,0.05823691,127.02,127.0,0.05870333]
[1741727486612,18.08556933,127.01,127.0,0.05870333]
[1741727487407,0.05823691,127.02,127.0,0.05870333]
[1741727488904,7.93253691,127.02,127.0,0.05870333]
[1741727491412,0.05823691,127.02,127.0,0.05870333]
[1741727491914,0.05823691,127.02,127.0,7.93370333]
[1741727492511,0.05823691,127.02,127.01,7.8748]
[1741727493213,0.05823691,127.02,127.0,0.05870333]
[1741727494516,7.93253691,127.02,127.0,0.05870333]
[1741727495216,0.05823691,127.02,127.0,0.05870333]
[1741727496613,7.93243691,127.02,127.0,0.05870333]
[1741727498520,0.05823691,127.02,127.0,0.05870333]
[1741727498823,18.08556933,127.01,126.95,30.0]
[1741727499518,7.8764,126.99,126.95,30.0]
[1741727500015,0.05642331,126.98,126.96,0.06026397]
[1741727501321,0.05642331,126.98,126.96,7.93806397]
[1741727504420,7.93312331,126.98,126.96,0.06026397]
[1741727504626,11.57820856,126.97,126.96,0.06026397]
[1741727505125,19.45540856,126.97,126.96,0.06026397]
[1741727508728,7.8782,126.96,126.92,7.88]
[1741727508929,11.57820856,126.95,126.91,3.9241]
[1741727509221,11.57820856,126.95,126.91,37.8805]